[Event "1st Rio Chess Open 2022"]
[Site "Rio de Janeiro"]
[Date "2022.04.22"]
[Round "2.1"]
[White "Gazola, Vanessa Ramos"]
[Black "Mekhitarian, Krikor Sevag"]
[Result "0-1"]
[ECO "E12"]
[WhiteElo "2004"]
[BlackElo "2569"]
[Annotator "TA"]
[PlyCount "60"]
[EventDate "2022.04.18"]
[EventType "swiss"]
[EventCountry "BRA"]
[SourceTitle "playchess.com"]
[Source "ChessBase"]
[SourceQuality "1"]
[TimeControl "5400+30"]

{[%evp 23,60,27,40,41,68,63,69,56,81,61,75,68,80,85,88,72,56,-24,0,-238,-246,-401,-397,-490,-464,-589,-586,-566,-593,-632,-610,-606,-601,-648,-637,-905,-722,-1126,-1021]} 1. d4 {[%emt 0:00:04]} Nf6 {[%emt 0:00:21]} 2. c4 {[%emt 0:00:16]} e6 {[%emt 0:02:17]} 3. Nf3 {[%emt 0:00:29]} b6 {[%emt 0:00:41]} 4. a3 {[%emt 0:00:37]} Ba6 {[%emt 0:00:34]} 5. Qc2 {[%emt 0:01:31]} c5 {[%emt 0:00:37]} 6. d5 {[%emt 0:04:42]} exd5 {[%emt 0:00:02]} 7. cxd5 {[%emt 0:00:08]} g6 {[%emt 0:00:02]} 8. Nc3 {[%emt 0:00:13]} Bg7 {[%emt 0:00:02]} 9. g3 {[%emt 0:00:48]} O-O {[%emt 0:00:53]} 10. Bg2 {[%emt 0:00:26]} Re8 {[%emt 0:07:17]} 11. O-O {[%emt 0:01:24]} d6 {[%emt 0:04:43]} 12. Re1 {[%emt 0:09:06]} Nbd7 {[%emt 0:10:53]} 13. Bf4 {[%emt 0:05:24] E12: Queen's Indian: Unusual White 4th moves, 4 a3, 4 Nc3 Bb7 5 a3 and 4 Nc3 Bb7 .} Bf8 $5 {[%emt 0:01:11][%mdl 4] A promising side line.} 14. h3 {[%emt 0:01:04]} Nh5 {[%emt 0:06:28]} 15. Bg5 {[%emt 0:02:24] [#] White is slightly better.} Be7 $146 {[%emt 0:00:30]} ({Predecessor:} 15... f6 16. Bd2 Ne5 17. g4 Ng7 18. Nxe5 fxe5 19. Qa4 Bc8 20. f4 Bd7 21. Qc2 Rc8 22. Rf1 b5 23. Ne4 h5 24. fxe5 {1-0 (24) Susla,V (2294)-Palma Espinosa,H (2050) LSS email 2015}) 16. Bd2 {[%emt 0:04:56]} b5 {[%emt 0:11:53]} 17. g4 {[%emt 0:11:17]} Ng7 {[%emt 0:12:30]} 18. Bf4 {[%emt 0:03:39]} h5 {[%emt 0:00:59]} 19. Ne4 {[%emt 0:07:32]} Nb6 {[%emt 0:05:01]} 20. Red1 {[%emt 0:03:39]} (20. Bh6 $1 $14) 20... Bb7 $11 {[%emt 0:08:09]} 21. Nxc5 $2 {[%emt 0:09:46]} dxc5 $19 {[%emt 0:00:28]} 22. d6 $2 {[%emt 0:00:07]} (22. e4) 22... Bf6 {[%emt 0:04:49][%cal Be7f6,Bf6g7,Bg7e5,Be5d4][%mdl 32]} 23. g5 {[%emt 0:03:31] [#]} Ne6 $1 {[%emt 0:00:21][%csl LRf4,LRg5] Black is clearly winning.} 24. Be3 {[%emt 0:00:08]} (24. Bg3 Bg7) 24... Bg7 {[%emt 0:04:04]} 25. d7 {[%emt 0:02:12]} Nxd7 {[%emt 0:02:53]} 26. Ne5 {[%emt 0:00:13]} Bxe5 {[%emt 0:00:20]} 27. Bxb7 {[%emt 0:00:08]} Rb8 {[%emt 0:00:28]} 28. Bc6 {[%emt 0:00:23]} Bd4 {[%emt 0:00:52] [#] Hoping for ...Bxe3.} 29. Bd2 {[%emt 0:02:21]} Qc7 {[%emt 0:05:34]} 30. Be4 {[%emt 0:01:13]} Qg3+ {[%emt 0:10:38] Weighted Error Value: White=0.90/Black=0.17 (very precise)} 0-1

[Event "1st Rio Chess Open 2022"]
[Site "Rio de Janeiro"]
[Date "2022.04.22"]
[Round "2.2"]
[White "Di Berardino, Diego Rafael"]
[Black "Marcolino, Antonio Claudio H."]
[Result "1-0"]
[ECO "B14"]
[WhiteElo "2490"]
[BlackElo "2002"]
[Annotator "TA"]
[PlyCount "75"]
[EventDate "2022.04.18"]
[EventType "swiss"]
[EventCountry "BRA"]
[SourceTitle "playchess.com"]
[Source "ChessBase"]
[SourceQuality "1"]
[TimeControl "5400+30"]

{[%evp 16,75,6,12,44,43,89,89,81,69,103,72,74,60,73,71,79,58,79,75,78,66,66,66,82,55,55,51,55,69,208,211,225,231,335,338,337,331,440,454,442,442,540,510,547,556,5189,5084,5073,4971,4694,2586,29973,29970,29975,29976,29978,29977,29987,29988,29995,29996]} 1. e4 {[%emt 1:31:00]} c6 {[%emt 0:00:41]} 2. d4 {[%emt 0:00:00]} d5 {[%emt 0:00:48]} 3. exd5 {[%emt 0:00:00]} cxd5 {[%emt 0:00:35]} 4. c4 {[%emt 0:01:30]} Nf6 {[%emt 0:01:11]} 5. Nc3 {[%emt 0:00:00]} Nc6 {[%emt 0:02:01]} 6. Bg5 {[%emt 0:00:00]} e6 {[%emt 0:03:36]} 7. Nf3 {[%emt 0:01:30]} Be7 {[%emt 0:00:51]} 8. c5 {[%emt 0:00:00]} O-O {[%emt 1:24:47]} 9. Bb5 {[%emt 0:01:00]} Qc7 {[%emt 0:00:00] B14: Caro-Kann: Panov-Botvinnik Attack with 5...e6 and 5...g6.} 10. O-O {[%emt 0:00:00]} Re8 {[%emt 0:00:00]} (10... h6 $14 {should be considered.} 11. Bh4 Bd7) 11. Re1 $16 {[%emt 0:00:00]} Bd7 {[%emt 0:00:00] White is better.} 12. Rc1 {[%emt 0:00:00] [#]} Rac8 $146 {[%emt 0:00:00]} ({Predecessor:} 12... a6 13. Ba4 b5 14. Bc2 Reb8 15. Ne5 Qd8 16. Bxf6 Bxf6 17. Bxh7+ Kf8 18. Nxf7 Kxf7 {0-1 (48) Padilla,H (2194)-Principe,G Callao 2007}) 13. Qd2 {[%emt 0:00:00]} Qd8 {[%emt 0:00:00]} 14. h3 {[%emt 0:00:00]} h6 {[%emt 0:00:00]} 15. Bf4 {[%emt 0:00:00]} Bf8 {[%emt 0:00:00]} 16. Bd3 {[%emt 0:00:00]} b6 {[%emt 0:00:00]} 17. Ba6 {[%emt 0:00:00] 0x0.00249b13221edp-1022s more active pieces.} bxc5 {[%emt 0:00:00]} 18. Bxc8 {[%emt 0:00:00]} (18. dxc5 {looks sharper.} Bxc5 19. Bxc8 Bxc8 20. a3) 18... Bxc8 {[%emt 0:00:00]} 19. dxc5 {[%emt 0:00:00]} Bxc5 {[%emt 0:00:00]} 20. Nxd5 {[%emt 0:00:00]} Qxd5 {[%emt 0:00:00]} 21. Qxd5 {[%emt 0:00:00][%mdl 64] [#] Remove Defender} Nxd5 {[%emt 0:00:00]} 22. Rxc5 {[%emt 0:00:00]} Nxf4 {[%emt 0:00:00] This costs Black the game.} ({Black should try} 22... Ncb4 $1 $14) 23. Rxc6 $18 {[%emt 0:00:00] Black must now prevent Rc7.} Bb7 {[%emt 0:00:00]} 24. Rc4 {[%emt 0:00:00]} Nxh3+ {[%emt 0:00:31]} (24... g5 $142 25. Re3 Bd5) 25. gxh3 {[%emt 0:00:00]} Bxf3 {[%emt 0:00:26][%mdl 4096] Endgame KRR-KRB} 26. Rec1 {[%emt 0:00:00]} Be2 {[%emt 0:02:26]} 27. Rc8 {[%emt 0:00:00]} Kf8 {[%emt 0:00:40]} 28. a4 {[%emt 0:00:00]} a6 {[%emt 0:00:54]} 29. b4 {[%emt 0:00:00]} g6 {[%emt 0:00:24]} 30. f4 {[%emt 0:00:00] [#] And now Rxe8+ would win.} g5 {[%emt 0:00:59]} 31. Kf2 {[%emt 0:00:00]} Bd3 {[%emt 0:00:16]} 32. Ke3 {[%emt 0:00:00]} Bf5 {[%emt 0:00:29]} 33. b5 {[%emt 0:01:16]} axb5 {[%emt 0:01:59]} 34. axb5 {[%emt 0:00:04] White mates.} gxf4+ {[%emt 0:00:22]} 35. Kxf4 {[%emt 0:00:13]} Bxh3 {[%emt 0:00:28]} 36. Ke5 {[%emt 0:01:23]} Bg2 {[%emt 0:00:36]} 37. Kf6 {[%emt 0:01:07]} h5 {[%emt 0:01:00]} 38. R1c7 {[%emt 0:10:27] Weighted Error Value: White=0.04 (flawless) /Black=0.42} 1-0

[Event "1st Rio Chess Open 2022"]
[Site "Rio de Janeiro"]
[Date "2022.04.22"]
[Round "2.3"]
[White "Ferreira, Marcone Fiuza"]
[Black "Rodriguez Vila, Andres"]
[Result "0-1"]
[ECO "A34"]
[WhiteElo "1995"]
[BlackElo "2435"]
[Annotator "TA"]
[PlyCount "100"]
[EventDate "2022.04.18"]
[EventType "swiss"]
[EventCountry "BRA"]
[SourceTitle "playchess.com"]
[Source "ChessBase"]
[SourceQuality "1"]
[TimeControl "5400+30"]

{[%evp 11,100,1,23,31,43,24,41,16,34,37,46,48,56,42,47,46,50,50,56,49,49,47,61,62,58,52,76,72,76,55,54,41,90,79,87,33,78,19,94,95,84,93,93,59,78,50,61,34,54,26,15,14,36,0,0,0,9,-32,-13,-10,0,-37,-20,-8,113,122,130,54,67,94,174,180,227,31,312,275,280,0,0,0,23,0,0,-1166,-1088,-29985,-29984,-29992,-1246,-29998,0]} 1. e4 {[%emt 0:00:08]} e6 {[%emt 0:00:13]} 2. c4 {[%emt 0:00:08]} c5 {[%emt 0:00:32]} 3. Nc3 {[%emt 0:00:40]} Nc6 {[%emt 0:00:06]} 4. Nf3 {[%emt 0:00:26]} a6 {[%emt 0:00:14]} 5. Be2 {[%emt 0:00:17]} Qc7 {[%emt 0:01:07]} 6. O-O {[%emt 0:00:19]} Nf6 {[%emt 0:00:05]} 7. h3 {[%emt 0:00:33] [#] A34: Symmetrical English: 2 Nc3, lines with ...d5.} Rb8 $146 {[%emt 0:01:53]} ({Predecessor:} 7... b6 8. d3 Bb7 9. Be3 Be7 10. Rc1 O-O 11. a3 Rfd8 12. d4 cxd4 13. Nxd4 Nxd4 14. Qxd4 Bc5 15. Qd3 Bxe3 16. Qxe3 {½-½ (16) Marciano,D (2522)-Degraeve,J (2540) Vichy 2000}) 8. Re1 {[%emt 0:01:44]} Be7 {[%emt 0:02:11]} 9. Bf1 {[%emt 0:03:41] White is slightly better.} d6 {[%emt 0:01:11] Prevents e5.} 10. d4 {[%emt 0:00:35]} cxd4 {[%emt 0:00:05]} 11. Nxd4 {[%emt 0:00:14]} Ne5 {[%emt 0:02:32]} 12. Qe2 {[%emt 0:01:31]} O-O {[%emt 0:00:42]} 13. Be3 {[%emt 0:00:42]} b6 {[%emt 0:00:09]} 14. Rac1 {[%emt 0:09:26]} Re8 {[%emt 0:00:08]} 15. f3 {[%emt 0:02:53]} Bb7 {[%emt 0:00:24]} 16. b3 {[%emt 0:02:17]} Kh8 {[%emt 0:00:41]} 17. Qf2 {[%emt 0:00:16]} Ned7 {[%emt 0:00:41]} 18. Red1 {[%emt 0:02:25][%cal Oc3d5]} Rg8 {[%emt 0:00:17]} 19. Nde2 {[%emt 0:05:22]} g5 {[%emt 0:01:25]} 20. g4 {[%emt 0:00:53]} h5 {[%emt 0:01:39]} 21. Ng3 {[%emt 0:04:59]} hxg4 {[%emt 0:01:42]} (21... Rg7 $14 {should be considered.}) 22. hxg4 $16 {[%emt 0:04:16]} Rg7 {[%emt 0:00:11]} 23. Bd4 {[%emt 0:00:57]} (23. Kg2 $16) 23... Qd8 {[%emt 0:00:11]} 24. Bg2 {[%emt 0:11:11]} (24. Kg2 $16) 24... Qf8 {[%emt 0:00:57]} (24... Kg8 $11 {keeps the balance.}) 25. Na4 $1 {[%emt 0:01:14]} b5 {[%emt 0:01:57]} 26. cxb5 {[%emt 0:06:28]} axb5 {[%emt 0:00:05]} 27. Nb2 {[%emt 0:01:28]} Rh7 {[%emt 0:00:28]} 28. Rc7 {[%emt 0:01:01] Rxd7 is the strong threat.} Qd8 {[%emt 0:05:31]} 29. Rdc1 {[%emt 0:04:32] Hoping for Qd2.} Kg8 {[%emt 0:03:54]} (29... Nc5 $2 30. Rxe7 $1 {[%mdl 512]} Qxe7 31. e5 $18) 30. Qd2 {[%emt 0:01:41]} Ne8 {[%emt 0:00:06]} 31. R7c2 {[%emt 0:01:31]} Nf8 {[%emt 0:10:21]} 32. Nh5 {[%emt 0:02:09]} e5 {[%emt 0:01:12]} 33. Be3 {[%emt 0:01:07]} Ne6 {[%emt 0:01:02]} 34. Qf2 {[%emt 0:03:58]} N8g7 {[%emt 0:02:02]} 35. Nxg7 {[%emt 0:02:54]} Kxg7 {[%emt 0:00:23]} 36. Bb6 {[%emt 0:00:44]} Qh8 {[%emt 0:00:38]} 37. Nd3 {[%emt 0:00:14]} Nf4 {[%emt 0:01:46]} (37... Bd8 $11 {remains equal.}) 38. Nxf4 {[%emt 0:00:05]} gxf4 {[%emt 0:00:07] [#]} 39. Ba7 {[%emt 0:00:31]} ({Better is} 39. Bc7 $1 $16 {Strongly threatening Qa7.} Re8 40. Rd1 (40. Qb6 Bc8 $16)) 39... Re8 {[%emt 0:02:46][%cal Bb8e8,Be8e6,Be6h6][%mdl 32]} 40. Qb6 {[%emt 0:02:51][%csl LRb5,LRb7]} Ba8 {[%emt 0:00:16]} (40... Bc8 $16 41. Qxb5 Be6) 41. Qxb5 $18 {[%emt 0:00:37]} Bh4 {[%emt 0:02:55]} (41... Qf8 $142 42. a4 Rh8) 42. Qd7 $2 {[%emt 0:01:44]} (42. a4 $18) 42... Bg3 $2 {[%emt 0:00:15][%mdl 8192]} ({Black should play} 42... Rd8 $1 $14 43. Qb5 Rh6) 43. Kf1 {[%emt 0:08:33] Threatens to win with Rc7.} ({Don't take} 43. Qxd6 $6 Bb7 $18) (43. Rc7 $6 Rh1+ 44. Bxh1 Qh2+ 45. Kf1 Qxh1+ 46. Ke2 Qg2+ 47. Kd3 Qxf3+ 48. Kd2 Rf8 $18) 43... Re6 {[%emt 0:13:05][%cal Oa8e4]} 44. Rc8 $2 {[%emt 0:01:38]} ({White should try} 44. Rc7 $18 Qe8 45. a4) 44... Rh1+ $1 $11 {[%emt 0:00:06]} 45. Bxh1 {[%emt 0:06:42]} Qxh1+ {[%emt 0:00:38]} 46. Ke2 {[%emt 0:00:10]} Qg2+ {[%emt 0:00:55]} 47. Kd1 $4 {[%emt 0:00:53][%mdl 8192] [#]} (47. Kd3 $11 Qxf3+ 48. Kc4 Bxe4 49. Qd8) 47... Rh6 $1 $19 {[%emt 0:02:55] ( -> ...Rh1+)} 48. Rg8+ {[%emt 0:01:49]} (48. Qxf7+ Kxf7) 48... Kxg8 {[%emt 0:00:06]} 49. Qd8+ {[%emt 0:00:21]} Kg7 {[%emt 0:42:15]} (49... Kh7 $142 50. Bg1 Qxg1+ 51. Kc2 Rh2+ 52. Kb1 Qf2 53. Qg8+ Kxg8 54. Rc8+ Kh7 55. Rh8+ Kxh8 56. g5 Rh1#) 50. Qd7 {[%emt 0:04:42]} Kg8 $2 {[%emt 0:00:30][%mdl 32768] Weighted Error Value: White=0.64/Black=0.42. Sensor Board Error (Ke4/e5)?} (50... Rh1+ {mates} 51. Bg1 Rxg1#) 0-1

[Event "1st Rio Chess Open 2022"]
[Site "Rio de Janeiro"]
[Date "2022.04.22"]
[Round "2.4"]
[White "Hoffman, Alejandro"]
[Black "Ramos, Angelo Bil"]
[Result "1-0"]
[ECO "D36"]
[WhiteElo "2389"]
[BlackElo "1972"]
[Annotator "TA"]
[PlyCount "55"]
[EventDate "2022.04.18"]
[EventType "swiss"]
[EventCountry "BRA"]
[SourceTitle "playchess.com"]
[Source "ChessBase"]
[SourceQuality "1"]
[TimeControl "5400+30"]

{[%evp 20,55,28,22,35,28,26,20,48,40,31,33,41,36,38,33,37,45,30,45,36,43,49,52,64,57,125,113,151,133,273,223,327,310,415,377,590,570]} 1. d4 {[%emt 0:00:05]} Nf6 {[%emt 0:01:20]} 2. c4 {[%emt 0:00:09]} e6 {[%emt 0:00:21]} 3. Nc3 {[%emt 0:01:33]} d5 {[%emt 0:00:39]} 4. cxd5 {[%emt 0:00:37]} exd5 {[%emt 0:00:12]} 5. Bg5 {[%emt 0:00:08]} Be7 {[%emt 0:02:17]} 6. e3 {[%emt 0:00:12]} c6 {[%emt 0:00:17]} 7. Qc2 {[%emt 0:01:11]} Nbd7 {[%emt 0:02:09]} 8. Bd3 {[%emt 0:00:12]} Nh5 {[%emt 0:04:52]} 9. Bxe7 {[%emt 0:00:11]} Qxe7 {[%emt 0:00:09]} 10. Nge2 {[%emt 0:00:24][%cal Bg1e2,Be2c1,Bc1b3][%mdl 32]} Nb6 {[%emt 0:05:07] is now more promising than 10...g6.} 11. O-O {[%emt 0:02:57][%cal Ob2b4]} Nf6 {[%emt 0:10:31] D36: Queen's Gambit Declined: Exchange Variation: Main line (5 Bg5 c6 6 Qc2).} 12. Rae1 {[%emt 0:02:03]} O-O {[%emt 0:06:13]} 13. Nc1 {[%emt 0:02:43] [#]} Qd6 $146 {[%emt 0:04:32] The position is equal.} ({Predecessor:} 13... Be6 14. f3 Rad8 15. Nb3 Nc8 16. Nc5 Rfe8 17. b4 b6 18. Nxe6 fxe6 19. a3 Nd6 {½-½ (48) Potkin,V (2583)-Kim,A (2464) Moscow 2019}) 14. f3 {[%emt 0:02:41]} Bd7 {[%emt 0:07:36]} 15. Nb3 {[%emt 1:22:54]} Rae8 {[%emt 0:04:51]} 16. Nd1 {[%emt 0:00:30]} Bc8 {[%emt 0:03:31]} 17. Nf2 {[%emt 0:00:00]} g6 {[%emt 0:07:34]} 18. e4 {[%emt 0:00:00][%cal Be3e4,Be4e5][%mdl 32]} Nh5 {[%emt 0:02:48]} 19. e5 {[%emt 0:00:00]} Qd8 {[%emt 0:00:16]} 20. g3 {[%emt 0:00:00]} Qg5 {[%emt 0:03:18][%cal Oh5g3]} 21. Kh1 {[%emt 0:00:00]} Ng7 {[%emt 0:02:06]} 22. f4 {[%emt 0:00:00]} Qh5 {[%emt 0:01:47]} (22... Qd8 $14) 23. Be2 {[%emt 0:00:00] Active counter play!} Qf5 {[%emt 0:01:17]} 24. Qc3 {[%emt 0:00:00] [#] Strongly threatening Nc5.} Qd7 {[%emt 0:02:55] Black cannot hold the game after this.} (24... Qe6 $16) 25. Ng4 $18 {[%emt 0:00:00] aiming for Nf6+.} Nh5 {[%emt 0:00:16]} (25... Kh8 $142 26. Nf6 Qd8 27. Nxe8 Rxe8) 26. f5 {[%emt 0:00:00] And now Nh6+ would win.} Qd8 {[%emt 0:00:57]} 27. Qc1 {[%emt 0:00:00]} Bxf5 {[%emt 0:07:51]} (27... Kh8 {is a better defense.} 28. Nh6 Ng7 29. fxg6 fxg6 30. Nf7+ Rxf7) 28. Nh6+ {[%emt 0:00:00] Weighted Error Value: White=0.05 (flawless) /Black=0.41} 1-0

[Event "1st Rio Chess Open 2022"]
[Site "Rio de Janeiro"]
[Date "2022.04.22"]
[Round "3.1"]
[White "Mekhitarian, Krikor Sevag"]
[Black "Ferreira, Thales Bond Dias"]
[Result "1-0"]
[ECO "A59"]
[WhiteElo "2569"]
[BlackElo "2086"]
[Annotator "TA"]
[PlyCount "63"]
[EventDate "2022.04.18"]
[EventType "swiss"]
[EventCountry "BRA"]
[SourceTitle "playchess.com"]
[Source "ChessBase"]
[SourceQuality "1"]
[TimeControl "5400+30"]

{[%evp 23,63,62,77,17,76,80,79,75,78,52,88,83,91,87,116,118,156,164,158,127,124,135,188,188,188,187,185,185,435,435,530,493,646,646,646,645,638,525,832,792,714,641]} 1. d4 {[%emt 0:02:39]} Nf6 {[%emt 0:01:01]} 2. c4 {[%emt 0:00:03]} c5 {[%emt 0:01:19]} 3. d5 {[%emt 0:00:07]} b5 {[%emt 0:00:32]} 4. cxb5 {[%emt 0:00:39]} a6 {[%emt 0:00:06]} 5. bxa6 {[%emt 0:00:39]} g6 {[%emt 0:00:42]} 6. Nc3 {[%emt 0:02:51]} Bxa6 {[%emt 0:00:29]} 7. e4 {[%emt 0:10:04]} Bxf1 {[%emt 0:00:54]} 8. Kxf1 {[%emt 0:00:02]} d6 {[%emt 0:00:24]} 9. g3 {[%emt 0:00:04]} Bg7 {[%emt 0:01:21]} 10. Kg2 {[%emt 0:00:02]} O-O {[%emt 0:00:22]} 11. Nf3 {[%emt 0:00:02]} Nbd7 {[%emt 0:01:01]} 12. Qe2 {[%emt 0:00:13]} Qb6 {[%emt 0:05:08] is now more promising than 12...Qa5.} 13. Rd1 {[%emt 0:11:27] [#] A59: Benko/Volga Gambit: White castles by hand.} ({White should play} 13. a4 $16) 13... Ne8 $146 {[%emt 0:18:38]} (13... Qa6 $11) ({Predecessor:} 13... Qa6 14. Qc2 Rfb8 15. a4 Rb4 16. Ra3 Rab8 17. a5 Ne8 18. Re1 Nc7 19. Nd1 Nb5 20. Ra4 Rxa4 21. Qxa4 {½-½ (38) Czerw,D (2413)-Licznerski,L (2387) Szklarska Poreba 2021}) 14. Bg5 $16 {[%emt 0:01:17]} f6 {[%emt 0:02:27]} 15. Bf4 {[%emt 0:03:10] White is better.} Nc7 {[%emt 0:01:18]} 16. Rac1 {[%emt 0:14:15]} Rfb8 {[%emt 0:01:01]} 17. b3 {[%emt 0:06:56]} Qa6 {[%emt 0:01:47]} 18. Qc2 {[%emt 0:10:44] &Bianco is more active.} Nb5 {[%emt 0:01:03]} 19. Nxb5 {[%emt 0:00:05]} Rxb5 {[%emt 0:00:37]} 20. a4 {[%emt 0:00:41]} Rb7 {[%emt 0:00:59]} 21. Nd2 {[%emt 0:05:47]} Rab8 {[%emt 0:06:14]} 22. Rb1 {[%emt 0:00:45]} Ne5 {[%emt 0:01:43]} (22... g5 $16) 23. Bxe5 $18 {[%emt 0:01:09]} fxe5 {[%emt 0:00:16]} 24. Nc4 {[%emt 0:00:10]} Rb4 {[%emt 0:01:02]} 25. Rd3 {[%emt 0:00:49]} Qb7 $2 {[%emt 0:01:12] [#]} (25... Bf6 26. a5 Bg7) 26. Na5 {[%emt 0:06:06] White is clearly winning.} Qc7 {[%emt 0:03:28]} 27. Nc6 {[%emt 0:00:43]} Rxe4 {[%emt 0:00:10]} 28. Nxb8 {[%emt 0:01:24]} Qxb8 {[%emt 0:00:01]} 29. b4 {[%emt 0:03:52]} Rxb4 {[%emt 0:04:43]} 30. Rdb3 {[%emt 0:00:17]} Qa8 {[%emt 0:00:48]} 31. Rxb4 {[%emt 0:00:05]} cxb4 {[%emt 0:00:10]} 32. Qc6 {[%emt 0:19:23] Weighted Error Value: White=0.09 (flawless) /Black=0.47} 1-0

[Event "1st Rio Chess Open 2022"]
[Site "Rio de Janeiro"]
[Date "2022.04.22"]
[Round "3.2"]
[White "Nemeth Junior, Henrique"]
[Black "Di Berardino, Diego Rafael"]
[Result "1-0"]
[ECO "B63"]
[WhiteElo "2096"]
[BlackElo "2490"]
[Annotator "TA"]
[PlyCount "63"]
[EventDate "2022.04.18"]
[EventType "swiss"]
[EventCountry "BRA"]
[SourceTitle "playchess.com"]
[Source "ChessBase"]
[SourceQuality "1"]
[TimeControl "5400+30"]

{[%evp 25,63,-7,0,-18,-16,-54,-46,-51,0,0,0,0,0,0,0,0,0,0,0,0,0,0,0,-19,-20,-254,-249,-288,-282,-274,-269,-283,-273,-292,-305,-344,-56,-104,29997,29998]} 1. e4 {[%emt 0:00:12]} c5 {[%emt 0:00:46]} 2. Nf3 {[%emt 0:00:05]} Nc6 {[%emt 0:00:47]} 3. d4 {[%emt 0:00:07]} cxd4 {[%emt 0:00:04]} 4. Nxd4 {[%emt 0:00:04]} Nf6 {[%emt 0:00:13]} 5. Nc3 {[%emt 0:00:07]} d6 {[%emt 0:00:54]} 6. Bg5 {[%emt 0:00:07]} e6 {[%emt 0:01:13]} 7. Qd2 {[%emt 0:00:06]} Be7 {[%emt 0:00:43]} 8. O-O-O {[%emt 0:00:31]} O-O {[%emt 0:00:05]} 9. f3 {[%emt 0:01:30]} a6 {[%emt 0:03:20]} 10. h4 {[%emt 0:00:48]} Nxd4 {[%emt 0:00:11]} 11. Qxd4 {[%emt 0:00:12]} b5 {[%emt 0:00:15]} 12. Kb1 {[%emt 0:06:20]} Bb7 {[%emt 0:05:33]} 13. g4 {[%emt 0:08:15] is the new trend.} Rc8 {[%emt 0:05:19]} 14. Bd3 {[%emt 0:09:45] B63: Sicilian: Richter-Rauzer: 7...Be7 and unusual Black 7th moves.} Qc7 {[%emt 0:11:56]} 15. h5 {[%emt 0:13:50]} h6 {[%emt 0:28:15]} 16. Bd2 {[%emt 0:17:03] [#] Black is slightly better.} e5 $146 {[%emt 0:13:11]} (16... d5 $15 17. exd5 Nxd5) ({Predecessor:} 16... Qc5 17. Ne2 d5 18. e5 Nd7 19. f4 f6 20. Qxc5 Bxc5 21. exf6 Nxf6 22. g5 hxg5 23. fxg5 {0-1 (35) Ertl,J (2274)-Danner,G (2393) Austria 2016}) 17. Qg1 $11 {[%emt 0:01:36]} Nh7 {[%emt 0:00:56] Inhibits g5.} 18. Nd5 {[%emt 0:02:17]} Bxd5 {[%emt 0:04:39]} 19. exd5 {[%emt 0:00:24]} Bg5 $1 {[%emt 0:14:00]} (19... Nf6 $2 20. g5 hxg5 21. Qxg5 Nxd5 22. Qf5 $18) 20. Bf5 {[%emt 0:03:06]} Rb8 {[%emt 0:01:38]} 21. Bxh7+ {[%emt 0:04:27]} Kxh7 {[%emt 0:00:04]} 22. Bxg5 {[%emt 0:00:09]} hxg5 {[%emt 0:00:02][%cal Bh6g5,Bg5f4][%mdl 32]} 23. Qe3 {[%emt 0:00:35]} Qe7 {[%emt 0:00:18]} 24. Qe4+ {[%emt 0:13:12]} Kg8 {[%emt 0:00:32]} 25. f4 $2 {[%emt 0:09:10] [#]} (25. Qb4 $11 {and White has nothing to worry.}) 25... gxf4 $19 {[%emt 0:00:06]} 26. g5 {[%emt 0:00:04]} Qxg5 {[%emt 0:00:11]} 27. Rdg1 {[%emt 0:00:12]} Qh6 {[%emt 0:02:11]} 28. Qf5 {[%emt 0:01:19]} Rbe8 {[%emt 0:05:36]} 29. Rg4 {[%emt 0:07:55]} e4 {[%emt 0:00:05]} 30. Rhg1 {[%emt 0:01:06]} Re5 $2 {[%emt 0:01:04]} (30... f3 $19 {Threatens to win with ...Re5.} 31. Rxg7+ Qxg7 32. Rxg7+ Kxg7) 31. Rxg7+ $15 {[%emt 0:00:21]} Kh8 $2 {[%emt 0:01:00][%mdl 8192] [#]} (31... Qxg7 $17 32. Rxg7+ Kxg7 33. h6+ Kxh6 34. Qxf4+ Kh5 35. Qh2+ Kg6 36. Qg2+ Kf6 37. Qf2+ Rf5 38. Qh4+ Rg5 39. Qf4+ Kg6 40. Qxe4+ f5 41. Qe6+ Rf6 42. Qg8+ (42. Qe8+ Kh7 $15) 42... Kh5 43. Qh8+ Rh6 44. Qe8+ Rhg6 45. Qh8+ Kg4) 32. Rh7+ $1 {[%emt 0:00:56][%mdl 512] Never resign too early!  Weighted Error Value: White=0.36/Black=0.44} 1-0